Cogmind - Beta 10.2 @@@ ROGUE MODE // 2021.04.01 @ 14:21:45 // AFD2021/Volatile Player: SpaceCarp Result: Destroyed by G-34 Mercenary with Small Laser Performance ------------- Evolutions (1) 500 Regions Visited (3) 600 Robots Destroyed (14) 70 Value Destroyed (329) 329 Prototype IDs (0) 0 Alien Tech Used (0) 0 Bonus (0) 0 TOTAL SCORE: 1499 Bonus ------- None Cogmind --------- Core Integrity 0/400 Matter 225/300 Energy 25/100 System Corruption 0% Temperature Cool (6) Movement Core (50) Location -9/Materials Parts ------- > --- POWER (2) -------- (None) > --- PROPULSION (2) --- (None) > --- UTILITY (3) ------ Improved Terrain Scanner Improved Power Shielding > --- WEAPON (2) ------- (None) > --- INVENTORY (4) ---- Small Storage Unit Propulsion Shielding Light Assault Rifle Peak State ------------ > --- POWER ------------ (None) > --- PROPULSION ------- Wheel Wheel > --- UTILITY ---------- Sensor Array Improved Terrain Scanner Improved Power Shielding > --- WEAPON ----------- Electrolaser > --- INVENTORY -------- Small Storage Unit Propulsion Shielding [Rating: 11] Favorites ----------- Power Light Ion Engine Engine Light Ion Engine Propulsion Aluminum Leg Leg Aluminum Leg Wheel Wheel Utility Propulsion Shielding Device Sensor Array Storage Small Storage Unit Protection Propulsion Shielding Weapon Assault Rifle Energy Gun EM Pulse Gun Ballistic Gun Assault Rifle Special Weapon Mining Laser Build | -11 -10 -10 -9 ------- Run | Scr Mat Min Mat Slots Evolved 2 | . . . 2 Power 1 | . . . 1 Propulsion . | . . . . Utility 1 | . . . 1 Weapon . | . . . . Parts Attached 20 | 6 5 1 8 Power 2 | 1 1 . . Engine 2 | 1 1 . . Core . | . . . . Reactor . | . . . . Propulsion 4 | 2 . . 2 Treads . | . . . . Leg 2 | 2 . . . Wheel 2 | . . . 2 Hover . | . . . . Flight . | . . . . Utility 6 | 1 1 1 3 Device 2 | . . 1 1 Storage 2 | 1 . . 1 Processor . | . . . . Hackware . | . . . . Protection 2 | . 1 . 1 Artifact . | . . . . Weapon 8 | 2 3 . 3 Energy Gun 5 | 2 1 . 2 Energy Cannon . | . . . . Ballistic Gun 2 | . 1 . 1 Ballistic Cannon . | . . . . Launcher . | . . . . Special Weapon 1 | . 1 . . Impact Weapon . | . . . . Slashing Weapon . | . . . . Piercing Weapon . | . . . . Special Melee Weapon . | . . . . Unidentified Prototypes . | . . . . Parts Lost 13 | . 2 1 10 Power 2 | . 1 . 1 Propulsion 4 | . . . 4 Utility 1 | . . . 1 Weapon 6 | . 1 1 4 Highest Loss Streak 10 | . 2 1 10 Average Slot Usage (%) 92 | . 87 99 73 Engine 12 | . 9 14 9 Leg 25 | . 28 28 14 Wheel 1 | . . . 5 Device 7 | . . 5 20 Storage 8 | . 14 8 1 Protection 12 | . 7 14 11 Energy Gun 2 | . 8 . 1 Ballistic Gun 12 | . 12 14 9 Special Weapon 9 | . 5 13 . Naked Turns . | . . . . Heaviest Build 11 | 11 11 11 11 Greatest Support 20 | 20 20 20 20 Greatest Overweight (x) 2 | 1 . . 2 Average Overweight (x) . | . . . . Largest Inventory Capacity 6 | 6 6 6 6 Average Capacity 5 | 5 6 5 4 Most Carried 6 | 4 6 6 4 Average Carried 4 | 2 5 4 2 Final Capacity 6 | 6 6 4 4 Final Carried 6 | 4 6 3 3 Class Distribution -------------------- 100% | Mutant Dominant Class ---------------- Mutant | -10/Materials Mutant | -10/Mines Mutant | -9/Materials Resources | -11 -10 -10 -9 ----------- Run | Scr Mat Min Mat Matter Collected 335 | 260 . 34 41 Remotely . | . . . . Salvage Created 211 | . 33 70 108 Parts 19 | . 3 2 14 Haulers Intercepted . | . . . . Recyclers Shooed . | . . . . Parts Field Recycled . | . . . . Retrieved Matter . | . . . . Parts Self-Destructed . | . . . . Prevented . | . . . . Kills | -11 -10 -10 -9 ------- Run | Scr Mat Min Mat Combat Hostiles Destroyed 13 | . 3 2 8 Guns 6 | . 2 1 3 AOE 7 | . 1 1 5 Classes Destroyed 4 | . 1 1 2 Operator 1 | . . . 1 Swarmer 9 | . 3 . 6 Grunt 3 | . . 2 1 Sentry 1 | . . . 1 Best Kill Streak 5 | . 3 2 5 Combat Bots Only 4 | . 3 2 4 Max Kills in Single Turn 5 | . 2 2 5 Gunslinging . | . . . . Exploded 3 | . 1 1 3 Melee . | . . . . Uniques/NPCs Destroyed . | . . . . Combat | -11 -10 -10 -9 -------- Run | Scr Mat Min Mat Damage Taken 1233 | . 212 107 914 Core 425 | . 9 16 400 Absorbed by Shields . | . . . . Core Remaining (%) 95 | 100 . 90 . Volleys Fired 26 | . 5 8 13 Largest 2 | . 2 1 2 Hottest 63 | . 60 20 63 Shots Fired 32 | . 9 8 15 Gun 32 | . 9 8 15 Cannon . | . . . . Launcher . | . . . . Special . | . . . . Kinetic 25 | . 5 8 12 Thermal 3 | . . . 3 Explosive . | . . . . Electromagnetic 4 | . 4 . . Robot Hit Streak 5 | . 2 5 5 Robot Miss Streak 5 | . 5 1 2 Penetration Max . | . . . . Secondary Targets . | . . . . Shots Hit Robots 19 | . 3 6 10 Core Hits 23 | . 5 4 14 Critical Hits . | . . . . Critical Kills . | . . . . Critical Parts Destroyed . | . . . . Melee Attacks . | . . . . Impact . | . . . . Slashing . | . . . . Piercing . | . . . . Sneak Attacks . | . . . . Combat Hostiles . | . . . . Follow-up Attacks . | . . . . Damage Inflicted 967 | . 230 110 627 Guns 245 | . 45 70 130 Cannons . | . . . . Explosions 722 | . 185 40 497 Melee . | . . . . Ramming . | . . . . Kinetic 216 | . 33 70 113 Thermal 173 | . 110 . 63 Explosive 491 | . . 40 451 Electromagnetic 87 | . 87 . . Impact . | . . . . Slashing . | . . . . Piercing . | . . . . Highest Corruption . | . . . . Average Corruption . | . . . . Corruption Purged . | . . . . Overload Shots . | . . . . Overflow Damage 107 | . 58 . 49 Projectiles . | . . . . Explosions 107 | . 58 . 49 Melee . | . . . . Knockbacks . | . . . . Impact . | . . . . Kinetic . | . . . . Secondary . | . . . . Self-Inflicted Damage 316 | . 77 . 239 Shots 7 | . 3 . 4 Rammed . | . . . . Targets Rammed . | . . . . Kicked . | . . . . Crushed . | . . . . Highest Temperature 39 | . 7 5 39 Average Temperature 13 | . 4 5 16 Received Heat Transfer 273 | . . 60 213 Siege Activations . | . . . . Robots Corrupted . | . . . . Combat Hostiles . | . . . . Parts Fried . | . . . . Impact Corruptions . | . . . . Robots Melted . | . . . . Combat Hostiles . | . . . . Parts Melted 1 | . 1 . . Heat Transferred 237 | . 100 . 137 Parts Sabotaged . | . . . . Parts Stolen . | . . . . Parts Stripped . | . . . . Power Chain Reactions . | . . . . Missiles Intercepted . | . . . . Alert | -11 -10 -10 -9 ------- Run | Scr Mat Min Mat Peak Influence . | . . . . Initial 31 | . . 31 19 Average . | . . . . Maximum Alert Level 1 | . . . 1 Low Security (%) 98 | 100 100 100 90 Level 1 1 | . . . 9 Level 2 . | . . . . Level 3 . | . . . . Level 4 . | . . . . Level 5 . | . . . . High Security . | . . . . Max Security . | . . . . Squads Dispatched 3 | . 1 . 2 Investigation 1 | . 1 . . Extermination . | . . . . Reinforcement 2 | . . . 2 Assault . | . . . . Garrison . | . . . . Intercept . | . . . . Construction Impeded . | . . . . Haulers Reinforced . | . . . . Stealth | -11 -10 -10 -9 --------- Run | Scr Mat Min Mat Distress Signals 2 | . . . 2 Communications Jammed . | . . . . Distress Signals . | . . . . Times Spotted 23 | . 4 2 17 Peak Tracking Total 7 | . 3 2 7 Tactical Retreats . | . . . . Traps | -11 -10 -10 -9 ------- Run | Scr Mat Min Mat Traps Triggered 1 | . 1 . . Indirectly . | . . . . Trap Hack Attempts . | . . . . Triggered . | . . . . Disarmed . | . . . . Reprogrammed . | . . . . Reused . | . . . . Traps Extracted . | . . . . Installed . | . . . . Triggered . | . . . . Machines | -11 -10 -10 -9 ---------- Run | Scr Mat Min Mat Machines Disabled 5 | . 2 . 3 Max in Single Turn 2 | . 2 . 2 Machines Sabotaged . | . . . . Garrisons Compromised . | . . . . Overloaded Fab Kills . | . . . . Fab Network Shutdowns . | . . . . Hacking | -11 -10 -10 -9 --------- Run | Scr Mat Min Mat Machines Accessed 2 | . 1 . 1 Terminals 1 | . . . 1 Fabricators . | . . . . Repair Stations 1 | . 1 . . Recycling Units . | . . . . Scanalyzers . | . . . . Garrison Access . | . . . . Total Hacks 6 | . 1 . 5 Successful 5 | . . . 5 Failed 1 | . 1 . . Catastrophic . | . . . . Database Lockouts . | . . . . Manual 1 | . . . 1 Terminals 5 | . . . 5 Fabricators . | . . . . Repair Stations 1 | . 1 . . Recycling Units . | . . . . Scanalyzers . | . . . . Garrison Access . | . . . . Terminal Hacks 5 | . . . 5 Record 5 | . . . 5 Fabricator Hacks . | . . . . Repair Station Hacks . | . . . . Recycling Unit Hacks . | . . . . Scanalyzer . | . . . . Garrison Access Hacks . | . . . . Unauthorized Hacks . | . . . . Terminals . | . . . . Fabricators . | . . . . Repair Stations . | . . . . Recycling Units . | . . . . Scanalyzers . | . . . . Garrison Access . | . . . . Data Cores Recovered . | . . . . Used . | . . . . Hacking Detections 1 | . . . 1 Full Trace Events . | . . . . Feedback Events . | . . . . Feedback Blocked . | . . . . Robot Schematics Acquired . | . . . . Robots Built . | . . . . Matter . | . . . . Time . | . . . . Total Robot Build Rating . | . . . . Part Schematics Acquired . | . . . . Parts Built . | . . . . Matter . | . . . . Time . | . . . . Total Part Build Rating . | . . . . Parts Repaired . | . . . . Time . | . . . . Parts Recycled . | . . . . Recycled Matter . | . . . . Retrieved Matter . | . . . . Retrieved Components . | . . . . Parts Scanalyzed . | . . . . Part Schematics Acquired . | . . . . Parts Damaged . | . . . . Bothacking | -11 -10 -10 -9 ------------ Run | Scr Mat Min Mat Used RIF Installer . | . . . . Robots Hacked . | . . . . Non-combat . | . . . . Combat . | . . . . Robot Hacks Applied . | . . . . Relay Couplers Released . | . . . . Robots Rewired . | . . . . Allies Hacked . | . . . . Hacks Repelled . | . . . . Allies | -11 -10 -10 -9 -------- Run | Scr Mat Min Mat Total Allies . | . . . . Largest Group . | . . . . Highest-Rated Group . | . . . . Highest-Rated Ally . | . . . . Total Orders . | . . . . Ally Attacks . | . . . . Total Damage . | . . . . Kills . | . . . . Allies Corrupted . | . . . . Allies Melted . | . . . . Intel | -11 -10 -10 -9 ------- Run | Scr Mat Min Mat Robot Analysis Total . | . . . . Derelict Logs Recovered 1 | . . 1 . Drone Launches . | . . . . Drone Recoveries . | . . . . Exploration | -11 -10 -10 -9 ------------- Run | Scr Mat Min Mat Turns Passed 1018 | 76 185 583 174 Spaces Moved 780 | 58 134 459 129 Core 28 | 15 . . 13 Treads . | . . . . Legs 705 | 43 134 459 69 Wheels 47 | . . . 47 Hover . | . . . . Flight . | . . . . Fastest Speed 50 | 50 120 120 50 Average Speed 115 | 104 120 120 101 Slowest Speed 150 | 120 120 120 150 Overloaded Moves . | . . . . Propulsion Burnouts . | . . . . Robots Hopped . | . . . . Cave-ins Triggered . | . . . . Exploration Rate (%) 34 | 4 25 92 15 Regions Visited 3 Branch Regions 1 Pre-discovered Areas . | . . . . Known Exits Taken . | . . . . Unknown Exits Taken 3 | 1 1 1 . Scrap Searched 1 | . . 1 . Spaces Dug . | . . . . Terrain Destroyed 62 | . 4 6 52 Melee . | . . . . Projectile . | . . . . AOE 62 | . 4 6 52 Terrain Rammed . | . . . . Walls Destroyed . | . . . . Machines Disabled . | . . . . Actions | -11 -10 -10 -9 --------- Run | Scr Mat Min Mat Total 867 | 73 150 486 158 Wait 10 | . . 10 . Move 777 | 57 133 458 129 Hop . | . . . . Pick Up 24 | 10 5 3 6 Fast Attach . | . . . . Attach 20 | 6 5 1 8 Detach 4 | . 2 . 2 Swap . | . . . . Drop 6 | . . 6 . Fire 26 | . 5 8 13 Melee . | . . . . Ram . | . . . . Kick . | . . . . Crush . | . . . . Escape Stasis . | . . . . Rewire . | . . . . Trap . | . . . . Miscellaneous . | . . . . Route ------- -11/Scrapyard -10/Materials -10/Mines (discovered 2 exits: *Mat x2) -9/Materials (discovered 1 exit: Min) History --------- Turn | Location | Event 7 | -11/Scrapyard | Discovered new exit (range 15) 77 | -11/Scrapyard | Entered Materials 175 | -10/Materials | Discovered new exit (range 6) 262 | -10/Materials | Entered Mines 303 | -10/Mines | Build established: Mutant 394 | -10/Mines | Discovered new exit (range 9) 547 | -10/Mines | Learned location of 1 exit from Materials 837 | -10/Mines | Discovered new exit (range 6) 845 | -10/Mines | Entered Materials 845 | -9/Materials | Evolved 2 slots: Power x1, Utility x1 846 | -9/Materials | Identified exit to Mines 988 | -9/Materials | Core integrity fell below 50% 1006 | -9/Materials | Core integrity fell below 20% 1019 | -9/Materials | Destroyed by G-34 Mercenary with Small Laser Last Messages --------------- 00978_ O-16 Technician uses terminal to summon reinforcements. 00978_ ALERT: Hostiles spotted, dispatching reinforcements to Terminal M003. 00978_ O-16 Technician locks terminal. 00982_ Lgt. Ion Engine destroyed. 00985_ Acquired Imp. Power Shielding. 00988_ Acquired Electrolaser. 00993_ Electrolaser destroyed. 00994_ Wheel destroyed. 00996_ Acquired Electrolaser. 00998_ S-10 Pest destroyed. 00998_ O-16 Technician destroyed. 00998_ Electrolysis Chamber disabled. 00998_ G-47 Trooper destroyed. 01004_ Acquired Lgt. Assault Rifle. 01009_ Wheel destroyed. 01009_ Electrolaser destroyed. 01011_ U-05 Engineer lays Concrete. 01015_ Sensor Array destroyed. 01015_ U-05 Engineer lays Concrete. Map ----- +----------------------------------------------------+ | ??????????????????????????????????# " | | ??????????????????????????????????# "# | | ???????????????????????????######?# """# | | ???????????????????????????# # ### | | ???????????????????????????# # ##########?? | | ???????????????????????????#""" / #??????????# | | ???????????????????????????#""" # #??????????? | | ????????????????????????????""" # #??????????? | | ???????????????????????????# ?# #????????#?? | | ???????????????????????????####+??# #??????????? | | ???????????????????????#?#????# ??# #??????????? | | ???????????????????????????#??# ??# #??????????? | | ?????????????????????????????## ### #???????#??? | | ?????????????????????????????+ #????#?????? | | ?????????????????????????????## #???? ????? | | ??????????????????????????????# #????""" ? ? | | ??????????????????????????""??# #??? """ ?? | | ??????????????????????????? ## #??? """ ? | | ??????????????????????????? # #### == | | ???????????????????????????? + T # """ =! | | ???????????????????#######+#?# """ | | ???????????????????# # #?# "" """ | | ???????????????????# " # #?# "" | | ???????????????????# """ # #?# """ [ ####### | | ???????????????????# """ # ### g ! #????? | | ???????????????????# """ @ b #????? | | ???????????????????# "" # ## # #????? | | ???????????????????# """ ########## ####????? | | ???????????????????# "" #???#????#!! ! #???#???? | | ???????????????????# """ #????????#!![[!!#???????? | | ???????????????????# " ???#?#???########???????? | | ???????????????????#! ????????????????????????? | | ???????????????????######?#????#?????????????????? | | ?????????????????????????????????????????????????# | | | | | | | | | | | | | | | | | | | | | | | | | | | | | | | | | +----------------------------------------------------+ Best States ------------- Heat Dissipation 28 Energy Generation 10 Energy Capacity 125 Matter Stores 300 Matter Capacity 300 Sight Range 16 Robot Scan Range 10 Terrain Scan Range 16 Terrain Scan Density 10 Power Shielding 66 Propulsion Shielding 33 Evasion (%) 50 Item Schematics ----------------- None Robot Schematics ------------------ None Fabricated ------------ Nothing Alien Tech Used ----------------- None Achievements -------------- None Challenges ------------ None Game ------ Seed LobotomyFactoryArray Manual? 0 Play Time 00:18:17 Cumulative 2.4 hours Start 2021.04.01 @ 14:05:17 End 2021.04.01 @ 14:21:45 Sessions 1 Manual Loads 0 Difficulty Rogue Special Mode AFD2021/Volatile Game No. 7 Rogue 7 Adventurer 0 Explorer 0 Win Type - Total 0 Types 0/0/0/0/0/0/0/0/0 Lore% 2 Gallery% 9 Achievement% 8 Wizard Run 0 Options --------- ASCII 0 Keyboard 0 Movement Mouse Keybinds 0 Fullscreen 1 Font 18/SmallcapsGlow Map View 76x50 Tactical HUD 1 Map Filters NONE Filters NONE Steam 1 RUN: a84cb8b3-e102-4f8b-87f3-beee3c461bab